bitfinex/quotes_BTCUSD_20241107
["timestamp","ask_amount","ask_price","bid_price","bid_amount"]
[1730995149120,5e-05,75990.0,75988.0,0.93543081]
[1730995149327,5e-05,75990.0,75988.0,0.82139108]
[1730995149569,5e-05,75990.0,75988.0,0.79507108]
[1730995150077,5e-05,75990.0,75988.0,0.84907179]
[1730995150325,5e-05,75990.0,75988.0,0.90666726]
[1730995151037,0.000746,75989.0,75988.0,0.90666726]
[1730995151250,0.000746,75989.0,75988.0,0.85487179]
[1730995151504,0.000746,75989.0,75988.0,0.84087179]
[1730995151722,0.000746,75989.0,75988.0,0.82687179]
[1730995151936,0.000746,75989.0,75988.0,0.84087179]
[1730995152158,0.000746,75989.0,75988.0,0.89846726]
[1730995152389,0.000746,75989.0,75988.0,0.82687179]
[1730995152610,0.000746,75989.0,75988.0,0.84087179]
[1730995152836,0.000746,75989.0,75988.0,0.85487179]
[1730995153740,0.000746,75989.0,75988.0,0.84087179]
[1730995153971,0.000746,75995.0,75994.0,0.16303006]
[1730995154183,0.000746,75995.0,75994.0,0.56967108]
[1730995154402,0.15053224,75998.0,75997.0,0.01]
[1730995154614,1.035012,75999.0,75998.0,0.11]
[1730995154867,1.035012,75999.0,75998.0,0.24224102]
[1730995155086,0.005,76044.0,75999.0,0.01]
[1730995155087,1.81210009,76000.0,75999.0,0.01]
[1730995155340,1.81210009,76000.0,75999.0,0.24224102]
[1730995155341,1.57678559,76000.0,75999.0,0.24224102]
[1730995155572,1.40865058,76000.0,75999.0,0.89011108]
[1730995155802,1.23944758,76000.0,75999.0,0.77408026]
[1730995156344,0.19810218,76025.0,76000.0,0.1176]
[1730995156541,0.16052831,76024.0,76021.0,0.16303006]
[1730995156971,0.16052831,76024.0,76022.0,0.39962]
[1730995157185,0.19810218,76041.0,76022.0,0.39962]
[1730995157408,0.19810218,76041.0,76023.0,0.00263016]
[1730995157625,0.19810218,76041.0,76024.0,0.00263016]
[1730995158011,0.19810218,76041.0,76025.0,0.52685102]
[1730995160425,0.19810218,76040.0,76025.0,0.54985102]
[1730995160640,0.19810218,76040.0,76025.0,0.56385102]
[1730995160862,0.19810218,76040.0,76025.0,0.54085102]
[1730995161316,0.19810218,76040.0,76025.0,0.55485102]
[1730995161548,0.19810218,76040.0,76025.0,0.52685102]
[1730995161805,0.19810218,76040.0,76025.0,0.54085102]
[1730995162038,0.19810218,76040.0,76025.0,0.62385102]
[1730995162250,0.19810218,76040.0,76025.0,0.79825102]
[1730995162936,0.19810218,76040.0,76025.0,0.78425102]
[1730995163163,0.19810218,76040.0,76025.0,0.77025102]
[1730995163604,0.000745,76046.0,76027.0,0.01]
[1730995163849,0.000745,76046.0,76027.0,0.42090068]
[1730995164039,0.000745,76046.0,76027.0,0.81287108]
[1730995164249,0.000745,76046.0,76027.0,0.98727108]
[1730995164491,0.19810218,76041.0,76027.0,0.83424102]
[1730995164718,0.19810218,76041.0,76027.0,0.98727108]
[1730995164941,0.000745,76046.0,76038.0,0.28603006]
[1730995165150,0.000745,76046.0,76038.0,0.57130114]
[1730995165362,0.000745,76046.0,76038.0,0.78981108]
[1730995165577,0.000745,76046.0,76038.0,0.67981108]
[1730995166669,0.000745,76046.0,76038.0,0.52678102]
[1730995166895,0.000745,76046.0,76038.0,0.57969298]
[1730995167349,0.000745,76046.0,76038.0,1.1418531]
[1730995167603,0.000745,76046.0,76045.0,0.25803006]
[1730995167805,0.000745,76046.0,76045.0,0.39027108]
[1730995168037,0.000745,76046.0,76045.0,0.78477108]
[1730995168277,0.000745,76046.0,76045.0,0.77977108]
[1730995168502,0.000745,76046.0,76045.0,0.78477108]
[1730995168996,0.000745,76046.0,76045.0,0.63974102]
[1730995169442,0.000745,76046.0,76045.0,0.79277108]
[1730995170090,0.000745,76046.0,76045.0,0.82977108]
[1730995170986,0.000745,76046.0,76045.0,0.80677108]
[1730995171453,0.000745,76046.0,76045.0,0.82977108]
[1730995171660,0.000745,76046.0,76045.0,0.98117108]
[1730995172353,0.000745,76046.0,76045.0,0.82977108]
[1730995172798,0.000745,76046.0,76045.0,0.91017108]
[1730995173012,0.000745,76046.0,76045.0,0.88717108]
[1730995173233,0.000745,76046.0,76045.0,0.87917108]
[1730995173439,0.000745,76046.0,76045.0,0.92849108]
[1730995173662,0.000745,76046.0,76045.0,0.94249108]
[1730995173886,0.000745,76046.0,76045.0,0.92849108]
[1730995174581,0.001826,76050.0,76049.0,0.005]
[1730995174802,0.29810218,76076.0,76065.0,0.123]
[1730995175041,0.29810218,76076.0,76065.0,0.125]
[1730995175042,0.19810218,76066.0,76065.0,0.125]
[1730995175272,0.1,76076.0,76067.0,0.123]
[1730995175533,0.1,76076.0,76075.0,0.27603006]
[1730995175794,0.1,76076.0,76068.0,0.15303006]
[1730995176013,0.1,76076.0,76069.0,0.1]
[1730995176268,0.1,76076.0,76072.0,0.13224102]
[1730995176489,0.1,76076.0,76075.0,0.28527108]
[1730995176707,0.1,76076.0,76075.0,0.13224102]
[1730995177654,0.105,76076.0,76075.0,0.14624102]
[1730995178111,0.005,76072.0,76071.0,0.19810218]
[1730995178373,0.005,76071.0,76070.0,0.59247]
[1730995178640,0.0856,76071.0,76070.0,0.59247]
[1730995178870,0.0906,76071.0,76070.0,0.59247]
[1730995179127,0.0856,76071.0,76070.0,0.59247]
[1730995180081,0.0856,76071.0,76070.0,0.60647]
[1730995180307,0.0856,76071.0,76070.0,0.59247]
[1730995180542,0.0906,76071.0,76070.0,0.60647]
[1730995180767,0.0906,76071.0,76070.0,0.59247]
[1730995181226,0.0906,76071.0,76070.0,0.60647]
[1730995181661,0.0906,76071.0,76070.0,0.62047]
[1730995182168,0.0906,76071.0,76070.0,0.60647]
[1730995182392,0.005,76075.0,76070.0,0.72471102]
[1730995182603,0.105833,76076.0,76071.0,0.13224102]
[1730995183043,0.105833,76076.0,76074.0,0.13224102]
[1730995183480,0.005,76075.0,76074.0,0.12224102]
[1730995183690,0.100833,76076.0,76074.0,0.12224102]
[1730995183902,0.050833,76076.0,76074.0,0.12224102]
[1730995184994,0.050833,76076.0,76070.0,0.59247]
[1730995184995,0.005,76073.0,76070.0,0.59247]
[1730995185208,0.005,76073.0,76071.0,0.13224102]
[1730995185432,0.005,76073.0,76071.0,0.3303432]
[1730995185661,0.01,76071.0,76070.0,0.59247]
[1730995185868,0.015,76071.0,76070.0,0.59247]
[1730995186529,0.0905,76071.0,76070.0,0.59247]
[1730995186963,0.0855,76071.0,76070.0,0.60647]
[1730995187177,0.0855,76071.0,76070.0,0.72471102]
[1730995187178,0.0805,76071.0,76070.0,0.72471102]
[1730995187420,0.0805,76071.0,76070.0,0.71971102]
[1730995187636,0.0805,76071.0,76070.0,0.74571102]
[1730995188051,0.005,76071.0,76070.0,0.74571102]
[1730995188296,0.005,76071.0,76070.0,0.73371102]
[1730995188518,0.050833,76076.0,76070.0,0.73371102]
[1730995188751,0.050833,76076.0,76071.0,0.13486983]
[1730995188972,0.050833,76076.0,76072.0,0.13224102]
[1730995189413,0.050833,76076.0,76074.0,0.13224102]
[1730995189683,0.050833,76076.0,76075.0,0.13224102]
[1730995189898,0.050833,76076.0,76075.0,0.28527108]
[1730995190356,0.050833,76076.0,76075.0,0.13224102]
[1730995191017,0.050833,76076.0,76075.0,0.14624102]
[1730995191018,0.055833,76076.0,76075.0,0.14624102]
[1730995191248,0.131833,76076.0,76075.0,0.14624102]
[1730995191481,0.136833,76076.0,76075.0,0.028]
[1730995191702,0.141833,76076.0,76075.0,0.028]
[1730995192367,0.141833,76076.0,76075.0,0.014]
[1730995192610,0.14446705,76076.0,76075.0,0.023]
[1730995192853,0.14446705,76076.0,76075.0,0.009]
[1730995193068,0.14446705,76076.0,76072.0,2.0]
[1730995193069,0.015,76073.0,76072.0,2.0]
[1730995194991,0.016,76073.0,76072.0,2.001]
[1730995195477,0.018,76073.0,76072.0,2.002]
[1730995195713,0.04176773,76076.0,76072.0,2.13424102]
[1730995195926,0.04176773,76076.0,76075.0,0.38527108]
[1730995195927,0.03748262,76076.0,76075.0,0.38527108]
[1730995196146,0.03748262,76076.0,76075.0,0.42227092]
[1730995196398,0.03748262,76076.0,76075.0,0.38527108]
[1730995196626,0.03748262,76076.0,76075.0,0.23224102]
[1730995197519,0.03748262,76076.0,76075.0,0.29990506]
[1730995197520,0.03848262,76076.0,76075.0,0.29990506]
[1730995197753,0.03848262,76076.0,76075.0,0.36830506]
[1730995197964,0.03848262,76076.0,76075.0,0.37330506]
[1730995198180,0.03748262,76076.0,76075.0,0.33130506]
[1730995198401,0.03748262,76076.0,76075.0,0.33630506]
[1730995199299,0.03748262,76076.0,76075.0,0.35030506]
[1730995199522,0.03748262,76076.0,76075.0,0.30490506]
[1730995199741,0.03748262,76076.0,76075.0,0.35588504]
[1730995199976,0.03748262,76076.0,76075.0,0.31890506]
[1730995200227,0.03748262,76076.0,76075.0,0.35587906]
[1730995201019,0.03692262,76076.0,76075.0,0.29990506]
[1730995201270,0.03692262,76076.0,76075.0,0.35088294]
[1730995201708,0.03692262,76076.0,76075.0,0.35588294]
[1730995202383,0.03692262,76076.0,76075.0,0.35088294]
[1730995203049,0.03329887,76076.0,76075.0,0.39778294]
[1730995204405,0.03329887,76076.0,76075.0,0.35588294]
[1730995204632,0.03329887,76076.0,76075.0,0.83691518]
[1730995204880,0.03329887,76076.0,76075.0,0.638813]
[1730995205145,0.03329887,76076.0,76075.0,0.633813]
[1730995205798,0.00204739,76076.0,76075.0,0.666813]
[1730995206467,0.00204739,76076.0,76075.0,0.643813]
[1730995206918,0.00204739,76076.0,76075.0,0.503913]
[1730995207131,0.00204739,76076.0,76075.0,0.508913]
[1730995207356,0.00204739,76076.0,76075.0,0.503913]
[1730995207567,0.00204739,76076.0,76075.0,0.16024102]
[1730995207791,0.00704739,76076.0,76075.0,0.028]
[1730995208010,0.08634739,76076.0,76075.0,0.028]
[1730995208851,0.08134739,76076.0,76075.0,0.14624102]
[1730995209069,0.005,76073.0,76072.0,2.0]
[1730995209495,0.08634739,76076.0,76075.0,0.014]
[1730995209912,0.005,76073.0,76072.0,2.0]
[1730995211436,0.02263405,76073.0,76072.0,2.0]
[1730995211680,0.02,76073.0,76072.0,2.0]
[1730995212100,0.0673,76073.0,76072.0,2.0]
[1730995212315,0.136,76073.0,76072.0,1.9219]
[1730995212528,0.146,76073.0,76072.0,1.9309]
[1730995212772,0.146,76073.0,76072.0,1.9219]
[1730995212990,0.136,76073.0,76072.0,1.9219]
[1730995213445,0.136,76073.0,76072.0,1.9229]
[1730995213655,0.14863405,76073.0,76072.0,1.9229]
[1730995213863,0.14863405,76073.0,76072.0,1.9219]
[1730995214103,0.28087507,76073.0,76072.0,1.9219]
[1730995214310,0.14463405,76073.0,76072.0,1.9229]
[1730995214522,0.15463405,76073.0,76072.0,1.9239]
[1730995214949,0.28687507,76073.0,76072.0,1.9239]
[1730995215176,0.28887507,76073.0,76072.0,1.7958]
[1730995215382,0.28687507,76073.0,76072.0,1.797464]
[1730995215619,0.28887507,76073.0,76072.0,1.797464]
[1730995215833,0.73054042,76073.0,76072.0,1.52494264]
[1730995216050,0.73054042,76073.0,76072.0,1.52294264]
[1730995216051,0.82327108,76073.0,76072.0,1.52294264]
[1730995216513,0.83727108,76073.0,76072.0,1.52494264]
[1730995216736,0.029,76073.0,76072.0,1.52394264]
[1730995216945,0.029,76073.0,76072.0,1.52294264]
[1730995216946,0.33090513,76073.0,76072.0,1.52294264]
[1730995217153,0.33090513,76073.0,76072.0,1.52394264]
[1730995217154,0.30727108,76073.0,76072.0,1.52394264]
[1730995217359,0.31427108,76073.0,76072.0,1.52494264]
[1730995217580,0.15924102,76073.0,76072.0,1.52394264]
[1730995217805,0.33290513,76073.0,76072.0,1.52394264]
[1730995218024,0.15424102,76073.0,76072.0,1.52394264]
[1730995218238,0.37187048,76073.0,76072.0,1.52394264]
[1730995218457,0.36923643,76073.0,76072.0,1.52394264]
[1730995218675,0.85068843,76073.0,76072.0,0.93449856]
[1730995218893,1.51046019,76073.0,76072.0,0.93449856]
[1730995219109,1.43325419,76073.0,76072.0,0.93349856]
[1730995219347,1.21426819,76073.0,76072.0,0.93349856]
[1730995219536,1.24226819,76073.0,76072.0,0.93349856]
[1730995219751,0.02,76055.0,76054.0,0.19810218]
[1730995219967,0.42254813,76055.0,76054.0,0.19810218]
[1730995220195,0.42254813,76055.0,76046.0,0.19810218]
[1730995220196,0.043,76047.0,76046.0,0.19810218]
[1730995220481,0.02,76040.0,76030.0,0.19810218]
[1730995220697,0.02263405,76040.0,76030.0,0.19810218]
[1730995220928,0.01,76040.0,76030.0,0.19810218]
[1730995221154,0.005,76041.0,76039.0,0.13390702]
[1730995221375,0.005,76041.0,76040.0,0.13224102]
[1730995221815,0.00263405,76054.0,76039.0,0.001666]
[1730995221816,0.005,76040.0,76039.0,0.001666]
[1730995222793,0.006,76040.0,76039.0,0.001666]
[1730995223476,0.001,76040.0,76039.0,0.001666]
[1730995223696,0.006,76040.0,76039.0,0.001666]
[1730995223911,0.007,76040.0,76039.0,0.001666]
[1730995225793,0.002,76040.0,76039.0,0.13390702]
[1730995226229,0.002,76040.0,76039.0,0.13653696]
[1730995226487,0.002,76040.0,76039.0,0.001666]
[1730995226488,0.007,76040.0,76039.0,0.001666]
[1730995228465,0.03,76040.0,76039.0,0.001666]
[1730995229355,0.03763405,76040.0,76039.0,0.001666]
[1730995229829,0.04763405,76040.0,76039.0,0.001666]
[1730995230265,0.005,76040.0,76039.0,0.001666]
[1730995230521,0.15587507,76040.0,76039.0,0.002666]
[1730995230772,0.1922728,76040.0,76039.0,0.002666]
[1730995231017,0.15687507,76040.0,76039.0,0.002666]
[1730995231476,0.17987507,76040.0,76039.0,0.002666]
[1730995231700,0.17887507,76040.0,76039.0,0.001666]
[1730995231935,0.17787507,76040.0,76039.0,0.001666]
[1730995232146,0.20233077,76040.0,76039.0,0.002666]
[1730995232392,0.20233077,76040.0,76039.0,0.001666]
[1730995232629,0.21633077,76040.0,76039.0,0.001666]
[1730995232891,0.21833077,76040.0,76039.0,0.001666]
[1730995233363,0.20587507,76040.0,76039.0,0.001666]
[1730995233567,0.22187507,76040.0,76039.0,0.001666]
[1730995233804,0.21987507,76040.0,76039.0,0.001666]
[1730995234045,0.37290513,76040.0,76039.0,0.001666]
[1730995234287,0.36660442,76040.0,76039.0,0.001666]
[1730995234774,0.17157436,76040.0,76039.0,0.001666]
[1730995234997,0.18820841,76040.0,76039.0,0.001666]
[1730995235227,0.83987971,76040.0,76039.0,0.001666]
[1730995235450,0.47211342,76040.0,76039.0,0.001666]
[1730995235681,0.47211342,76040.0,76026.0,0.19810218]
[1730995235682,0.03933334,76027.0,76026.0,0.19810218]
[1730995235925,0.17157436,76027.0,76026.0,0.19810218]
[1730995236167,0.00133334,76004.0,76003.0,0.0814]
[1730995236383,0.00133334,76000.0,75995.0,0.27981806]
[1730995236598,0.005,76013.0,75995.0,0.27981806]
[1730995236599,0.00133334,76002.0,76001.0,0.15303006]
[1730995236814,0.00133334,76000.0,75999.0,0.001666]
[1730995237257,0.00133334,76001.0,75999.0,0.001666]
[1730995237473,0.005,76013.0,75999.0,0.001666]
[1730995237474,0.00133334,76000.0,75999.0,0.13390702]
[1730995237916,0.00133334,76015.0,76000.0,0.1278]
[1730995238136,0.00133334,76015.0,76010.0,0.15303006]
[1730995238363,0.00133334,76015.0,76011.0,0.26004102]
[1730995239231,0.00333334,76015.0,76011.0,0.26004102]
[1730995239447,0.00233334,76015.0,76011.0,0.26004102]
[1730995239925,0.00233334,76015.0,76011.0,0.26104102]
[1730995240167,0.00333334,76015.0,76011.0,0.26104102]
[1730995241421,0.002,76015.0,76011.0,0.26104102]
[1730995241650,0.002,76015.0,76012.0,0.00263087]
[1730995241853,0.002,76015.0,76011.0,0.26104102]
[1730995242350,0.002,76015.0,76014.0,0.15303006]
[1730995242558,0.19810218,76028.0,76015.0,0.1232]
[1730995242766,0.19810218,76028.0,76018.0,0.0763]
[1730995242767,0.19810218,76020.0,76018.0,0.0763]
[1730995242975,0.19810218,76028.0,76020.0,0.1232]
[1730995243167,0.19810218,76028.0,76023.0,0.15303006]
[1730995243380,0.19810218,76028.0,76024.0,0.13224102]
[1730995243587,0.00133334,76025.0,76024.0,0.13224102]
[1730995243788,0.19810218,76036.0,76020.0,0.1232]
[1730995243789,0.00133334,76021.0,76020.0,0.1232]
[1730995244016,0.00133334,76023.0,76020.0,0.25544102]
[1730995244212,0.00133334,76027.0,76021.0,0.13487159]
[1730995244418,0.00133334,76029.0,76022.0,0.15303006]
[1730995244620,0.00133334,76029.0,76023.0,0.13224102]
[1730995244621,0.001,76028.0,76023.0,0.13224102]
[1730995245026,0.00133334,76029.0,76023.0,0.13224102]
[1730995245231,0.00133334,76039.0,76028.0,0.15303006]
[1730995245434,0.00133334,76042.0,76036.0,0.0771]
[1730995245607,0.00133334,76039.0,76037.0,0.0493]
[1730995245811,0.00133334,76040.0,76037.0,0.0493]
[1730995246253,0.000834,76046.0,76038.0,0.00263002]
[1730995246437,0.000834,76046.0,76039.0,0.0777]
[1730995246632,0.000834,76046.0,76040.0,0.00262983]
[1730995246977,0.000834,76046.0,76039.0,0.0777]
[1730995246978,0.19943552,76044.0,76041.0,0.13224102]
[1730995247189,0.00133334,76044.0,76041.0,0.13224102]
[1730995247364,0.00133334,76043.0,76041.0,0.13224102]
[1730995247565,0.00133334,76042.0,76041.0,0.13224102]
[1730995248295,0.00133334,76042.0,76041.0,0.14624102]
[1730995248670,0.001834,76046.0,76039.0,0.0777]
[1730995248671,0.00133334,76040.0,76039.0,0.0777]
[1730995248870,0.00133334,76032.0,76031.0,0.0777]
[1730995249965,0.00233334,76040.0,76031.0,0.4080432]
[1730995250192,0.001,76040.0,76039.0,0.2284]
[1730995250417,0.001,76040.0,76039.0,0.40036066]
[1730995250617,0.001,76040.0,76039.0,0.40139764]
[1730995250831,0.000834,76046.0,76045.0,0.27763006]
[1730995251030,0.000834,76046.0,76045.0,0.5606277]
[1730995251277,0.19893418,76073.0,76053.0,0.00366666]
[1730995251483,0.19893418,76073.0,76059.0,0.53066012]
[1730995251689,0.19893418,76073.0,76059.0,0.57275008]
[1730995252101,0.00133334,76072.0,76059.0,0.42472002]
[1730995252306,0.20026752,76073.0,76059.0,0.38763006]
[1730995252564,0.20026752,76073.0,76061.0,0.005]
[1730995252565,0.000832,76073.0,76061.0,0.005]
[1730995252777,0.19810218,76072.0,76066.0,0.1246]
[1730995252992,0.19810218,76072.0,76071.0,0.15303006]
[1730995253202,0.000832,76073.0,76071.0,0.28527108]
[1730995253400,0.000832,76073.0,76066.0,0.1246]
[1730995253401,0.000832,76073.0,76072.0,0.13224102]
[1730995254868,0.00216534,76073.0,76072.0,0.13224102]
[1730995255526,0.00216534,76073.0,76072.0,0.14624102]
[1730995256158,0.00216534,76073.0,76072.0,0.16024102]
[1730995256630,0.00216534,76073.0,76072.0,0.14624102]
[1730995257036,0.00216534,76073.0,76072.0,0.13224102]
[1730995257244,0.00133334,76067.0,76066.0,0.1246]
[1730995257455,0.00133334,76067.0,76066.0,0.25684102]
[1730995257658,0.00133334,76067.0,76066.0,0.30899397]
[1730995258407,0.000832,76073.0,76069.0,0.0482]
[1730995258654,0.000832,76073.0,76072.0,0.0829]
[1730995258909,0.000832,76073.0,76072.0,0.21514102]
[1730995259564,0.000832,76073.0,76072.0,0.21776968]
[1730995259967,0.000832,76073.0,76072.0,0.21514102]
[1730995260864,0.00216534,76073.0,76072.0,0.21514102]
[1730995261318,0.00763405,76089.0,76072.0,0.21514102]
[1730995261319,0.00138334,76090.0,76074.0,0.00366666]
[1730995261559,0.19810218,76089.0,76081.0,0.22371302]
[1730995261787,0.19810218,76089.0,76082.0,0.13224102]
[1730995262225,0.00138334,76090.0,76082.0,0.13224102]
[1730995262446,5e-05,76090.0,76082.0,0.13224102]
[1730995262688,5e-05,76090.0,76082.0,0.25494102]
[1730995263157,5e-05,76090.0,76089.0,0.22371302]
[1730995263389,5e-05,76090.0,76089.0,0.35595404]
[1730995264309,0.0104,76099.0,76092.0,0.00366666]
[1730995264542,0.0104,76099.0,76098.0,0.22371302]
[1730995264767,0.0104,76099.0,76098.0,0.25844102]
[1730995264981,0.0104,76099.0,76098.0,0.48215404]
[1730995265690,0.00133334,76109.0,76098.0,0.48215404]
[1730995265691,0.19810218,76123.0,76116.0,0.005]
[1730995265918,0.19810218,76123.0,76122.0,0.43535404]
[1730995266126,0.19810218,76131.0,76122.0,0.43535404]
[1730995266333,8e-05,76132.0,76130.0,0.22371302]
[1730995266540,8e-05,76132.0,76131.0,0.00262663]
[1730995266977,8e-05,76132.0,76131.0,0.13224102]
[1730995268043,8e-05,76132.0,76131.0,0.14624102]
[1730995268509,8e-05,76132.0,76131.0,0.4141432]
[1730995268724,8e-05,76132.0,76131.0,0.22104102]
[1730995268945,8e-05,76132.0,76131.0,0.31444102]
[1730995269182,0.19884618,76148.0,76136.0,0.005]
[1730995269408,0.19810218,76147.0,76136.0,0.20814102]
[1730995269654,0.000744,76148.0,76136.0,0.29044102]
[1730995270112,0.000744,76148.0,76138.0,0.005]
[1730995270332,0.000744,76148.0,76138.0,0.48395404]
[1730995270546,0.000744,76148.0,76147.0,0.25171302]
[1730995270757,0.000744,76148.0,76147.0,0.51375404]
[1730995271410,0.002,76150.0,76149.0,0.0755]
[1730995271614,0.0004,76159.0,76154.0,0.005]
[1730995271897,0.0004,76159.0,76154.0,0.37895404]
[1730995272128,0.0004,76159.0,76154.0,0.51985404]
[1730995272339,0.0004,76159.0,76158.0,0.005]
[1730995272544,0.0004,76159.0,76158.0,0.26024102]
[1730995272767,0.0004,76159.0,76158.0,0.13224102]
[1730995273019,0.0004,76159.0,76158.0,0.15524102]
[1730995274097,0.0004,76159.0,76158.0,0.26024102]
[1730995274326,0.19810218,76177.0,76165.0,0.028]
[1730995274556,0.19810218,76177.0,76166.0,0.37895404]
[1730995274789,0.1,76178.0,76166.0,0.37895404]
[1730995275018,0.1,76178.0,76166.0,0.43035404]
[1730995275665,0.1,76178.0,76166.0,0.51295404]
[1730995275906,0.1,76178.0,76166.0,0.49995404]
[1730995276131,0.1,76178.0,76170.0,0.005]
[1730995276364,0.1,76178.0,76177.0,0.35595404]
[1730995276594,0.1,76178.0,76177.0,0.13224102]
[1730995277077,0.005,76177.0,76166.0,0.014]
[1730995277305,0.11474654,76178.0,76167.0,0.19810218]
[1730995277306,0.005,76169.0,76167.0,0.19810218]
[1730995277522,0.01474654,76176.0,76173.0,0.005]
[1730995277523,0.00263405,76176.0,76173.0,0.005]
[1730995277748,0.1,76178.0,76177.0,0.024]
[1730995277977,0.1,76178.0,76177.0,0.028]
[1730995277978,0.13149346,76178.0,76177.0,0.028]
[1730995278234,0.11211232,76178.0,76177.0,0.014]
[1730995278437,0.12422947,76178.0,76177.0,0.14224102]
[1730995278643,0.11211232,76178.0,76177.0,0.13724102]
[1730995278857,0.11211232,76178.0,76177.0,0.14224102]
[1730995279288,0.1242354,76178.0,76177.0,0.14224102]
[1730995279573,0.14362882,76178.0,76177.0,0.14224102]
[1730995279790,0.14362882,76178.0,76177.0,0.14724102]
[1730995279791,0.11211232,76178.0,76177.0,0.14724102]
[1730995280025,0.1,76178.0,76177.0,0.15224102]
[1730995280236,0.11212831,76178.0,76177.0,0.18924102]
[1730995280448,0.1,76178.0,76177.0,0.17524102]
[1730995280666,0.1,76178.0,76177.0,0.18924102]
[1730995280878,0.1,76178.0,76177.0,0.20324102]
[1730995281085,0.1,76178.0,76177.0,0.16624102]
[1730995281753,0.1,76178.0,76177.0,0.17524102]
[1730995281976,0.0004872,76184.0,76183.0,0.01]
[1730995282193,0.0314,76200.0,76187.0,0.043]
[1730995282194,9.89904501,76188.0,76187.0,0.043]
[1730995282430,9.89904501,76188.0,76187.0,0.31154102]
[1730995282657,9.89904501,76188.0,76187.0,0.30154102]
[1730995282881,9.89904501,76188.0,76187.0,0.31154102]
[1730995283314,9.89904501,76188.0,76187.0,0.36437631]
[1730995283519,9.89904501,76188.0,76187.0,0.30154102]
[1730995283726,9.89904501,76188.0,76187.0,0.31154102]
[1730995283948,9.89904501,76188.0,76187.0,0.31554102]
[1730995284150,9.89904501,76188.0,76187.0,0.32554102]
[1730995284364,8.27104501,76188.0,76187.0,0.33954102]
[1730995284609,8.27104501,76188.0,76187.0,0.31324102]
[1730995285692,8.19294501,76188.0,76187.0,0.48764102]
[1730995285901,8.19294501,76188.0,76187.0,0.49294102]
[1730995285902,8.02434501,76188.0,76187.0,0.49294102]
[1730995286108,8.02434501,76188.0,76187.0,0.49094102]
[1730995286336,8.02434501,76188.0,76187.0,0.29024102]
[1730995286556,8.02434501,76188.0,76187.0,0.17524102]
[1730995286767,8.02434501,76188.0,76187.0,0.19024102]
[1730995286971,8.02434501,76188.0,76187.0,0.17524102]
[1730995287234,8.02434501,76188.0,76187.0,0.19024102]
[1730995287445,8.02434501,76188.0,76187.0,0.16124102]
[1730995287659,8.02434501,76188.0,76187.0,0.014]
[1730995287878,7.82517801,76188.0,76187.0,0.028]
[1730995288108,7.87027801,76188.0,76187.0,0.028]
[1730995288315,7.88239641,76188.0,76187.0,0.028]
[1730995288732,7.95819641,76188.0,76187.0,0.028]
[1730995288962,7.95819898,76188.0,76179.0,0.005]
[1730995289184,0.01212097,76187.0,76182.0,0.005]
[1730995289397,7.94607801,76188.0,76182.0,0.005]
[1730995289398,0.01212097,76186.0,76183.0,0.13224102]
[1730995289609,0.22634707,76185.0,76167.0,0.005]
[1730995289826,0.01213256,76184.0,76177.0,0.19810218]
[1730995290035,0.01476661,76183.0,76169.0,0.20310218]
[1730995290250,0.01213256,76182.0,76170.0,0.13486645]
[1730995290455,0.00263405,76186.0,76170.0,0.13486645]
[1730995290456,0.01213256,76181.0,76170.0,0.13486645]
[1730995290690,0.1252,76187.0,76178.0,0.005]
[1730995290958,0.32330218,76187.0,76179.0,0.13224102]
[1730995291377,0.1252,76187.0,76179.0,0.13224102]
[1730995291581,0.1252,76187.0,76183.0,0.014]
[1730995292888,0.001,76181.0,76179.0,0.13224102]
[1730995293118,0.001,76181.0,76179.0,0.013]
[1730995293351,7.82517801,76188.0,76185.0,0.005]
[1730995293570,7.82517801,76188.0,76187.0,0.15224102]
[1730995293781,7.82517801,76188.0,76187.0,0.14724102]
[1730995294214,7.82451009,76188.0,76187.0,0.14724102]
[1730995294435,7.82551009,76188.0,76187.0,0.14724102]
[1730995295325,7.82551009,76188.0,76187.0,0.16224102]
[1730995295538,7.82551009,76188.0,76187.0,0.26224102]
[1730995295756,6.32661009,76188.0,76187.0,0.26224102]
[1730995296201,6.32661009,76188.0,76187.0,0.31573602]
[1730995296419,6.32461009,76188.0,76187.0,0.36888306]
[1730995296646,6.32561009,76188.0,76187.0,0.36988306]
[1730995296855,6.32661009,76188.0,76187.0,0.35890642]
[1730995297071,6.32561009,76188.0,76187.0,0.35790642]
[1730995297965,6.32661009,76188.0,76187.0,0.35890642]
[1730995299229,6.32561009,76188.0,76187.0,0.53230642]
[1730995299480,6.32561009,76188.0,76187.0,0.54630642]
[1730995299683,6.32561009,76188.0,76187.0,0.54530642]
[1730995299890,6.32661009,76188.0,76187.0,0.55930642]
[1730995300305,6.32561009,76188.0,76187.0,0.54530642]
[1730995300568,6.30746852,76188.0,76187.0,0.38490642]
[1730995302295,3.22759347,76188.0,76187.0,0.38490642]
[1730995302576,1.69057191,76188.0,76187.0,0.37388306]
[1730995302787,1.69057191,76188.0,76187.0,0.37188306]
[1730995302788,1.62811255,76188.0,76187.0,0.37188306]
[1730995303009,1.62811255,76188.0,76187.0,0.38490642]
[1730995303218,1.60030055,76188.0,76187.0,0.38690642]
[1730995303868,1.60030055,76188.0,76187.0,0.38490642]
[1730995304073,1.60030055,76188.0,76187.0,0.38690642]
[1730995304504,1.60030055,76188.0,76187.0,0.38490642]
[1730995305372,1.60030055,76188.0,76187.0,0.38690642]
[1730995305796,1.60030055,76188.0,76187.0,0.3978027]
[1730995306008,1.60030055,76188.0,76187.0,0.38690642]
[1730995306435,1.55125629,76188.0,76187.0,0.38690642]
[1730995306651,0.84132417,76188.0,76187.0,0.43850534]
[1730995306870,0.78940417,76188.0,76187.0,0.4330572]
[1730995307292,11.30812553,76197.0,76196.0,0.02002336]
[1730995307520,11.30812553,76197.0,76196.0,0.4543692]
[1730995311193,10.72359625,76197.0,76196.0,0.69208222]
[1730995311604,10.72359625,76197.0,76196.0,0.68357565]
[1730995311830,10.72359625,76197.0,76196.0,0.67808222]
[1730995312055,10.72359625,76197.0,76196.0,0.69208222]
[1730995312269,10.72359625,76197.0,76196.0,0.8760892]
[1730995312498,10.72359625,76197.0,76196.0,0.8480892]
[1730995312722,10.72359625,76197.0,76196.0,0.63837618]
[1730995312924,10.72359625,76197.0,76196.0,0.8620892]